[Event "NJSK 2022 Jeugd C"]
[Site "Almelo, Netherlands"]
[Date "2022.05.02"]
[Round "2.12"]
[White "Kumar, Prayan Sai"]
[Black "Bosma, Jonathan"]
[Result "1-0"]
[TimeControl "90min + 30sec/move"]
[WhiteElo "1562"]
[BlackElo "884"]

1. d4 {[%emt 00:00:05]} Nf6 {[%clk 01:30:52]} {[%emt 00:00:06]} 2. Nf3 {[%clk
01:31:12]} {[%emt 00:00:15]} d6 {[%clk 01:30:48]} {[%emt 00:00:34]} 3. Bf4
{[%clk 01:31:09]} {[%emt 00:00:33]} Bf5 {[%clk 01:29:01]} {[%emt 00:02:17]} 4.
e3 {[%clk 01:30:23]} {[%emt 00:01:17]} e6 {[%clk 01:27:11]} {[%emt 00:02:19]} 5.
c4 {[%clk 01:30:23]} {[%emt 00:00:31]} c6 {[%clk 01:26:16]} {[%emt 00:01:24]} 6.
Nc3 {[%clk 01:29:27]} {[%emt 00:01:27]} d5 {[%clk 01:26:14]} {[%emt 00:00:31]}
7. Qb3 {[%clk 01:29:41]} {[%emt 00:00:16]} Qb6 {[%clk 01:17:35]} {[%emt
00:09:08]} 8. c5 {[%clk 01:29:48]} {[%emt 00:00:24]} Qxb3 {[%clk 01:16:23]}
{[%emt 00:01:42]} 9. axb3 {[%clk 01:29:52]} {[%emt 00:00:26]} Ne4 {[%clk
01:11:45]} {[%emt 00:05:09]} 10. Bxb8 {[%clk 01:28:44]} {[%emt 00:01:37]} Rxb8
{[%clk 01:11:56]} {[%emt 00:00:18]} 11. Rxa7 {[%clk 01:29:07]} {[%emt
00:00:08]} Nxc3 {[%clk 01:11:43]} {[%emt 00:00:42]} 12. bxc3 {[%clk 01:29:25]}
{[%emt 00:00:13]} f6 {[%clk 01:07:20]} {[%emt 00:04:54]} 13. Be2 {[%clk
01:27:17]} {[%emt 00:02:37]} g6 {[%clk 01:05:00]} {[%emt 00:02:49]} 14. O-O
{[%clk 01:27:26]} {[%emt 00:00:21]} Bg7 {[%clk 01:05:11]} {[%emt 00:00:19]} 15.
Nd2 {[%clk 01:26:44]} {[%emt 00:01:13]} O-O {[%clk 01:04:44]} {[%emt 00:00:57]}
16. g4 {[%clk 01:27:03]} {[%emt 00:00:11]} Be4 {[%clk 01:02:02]} {[%emt
00:03:12]} 17. f3 {[%clk 01:27:21]} {[%emt 00:00:12]} Bh6 {[%clk 01:02:13]}
{[%emt 00:00:19]} 18. Kf2 {[%clk 01:27:24]} {[%emt 00:00:28]} f5 {[%clk
00:58:01]} {[%emt 00:04:42]} 19. fxe4 {[%clk 01:24:24]} {[%emt 00:03:30]} fxe4+
{[%clk 00:56:24]} {[%emt 00:02:06]} 20. Ke1 {[%clk 01:24:36]} {[%emt 00:00:19]}
Rxf1+ {[%clk 00:55:25]} {[%emt 00:01:28]} 21. Nxf1 {[%clk 01:24:54]} {[%emt
00:00:13]} b6 {[%clk 00:54:10]} {[%emt 00:01:45]} 22. b4 {[%clk 01:22:59]}
{[%emt 00:02:25]} bxc5 {[%clk 00:53:20]} {[%emt 00:01:20]} 23. dxc5 {[%clk
01:23:14]} {[%emt 00:00:15]} Bg7 {[%clk 00:52:29]} {[%emt 00:01:22]} 24. Kd2
{[%clk 01:22:24]} {[%emt 00:01:19]} g5 {[%clk 00:50:31]} {[%emt 00:02:27]} 25.
Ba6 {[%clk 01:19:28]} {[%emt 00:03:27]} Be5 {[%clk 00:49:33]} {[%emt 00:01:28]}
26. Bb7 {[%clk 01:19:30]} {[%emt 00:00:29]} Rf8 {[%clk 00:47:20]} {[%emt
00:02:42]} 27. Ra8 {[%clk 01:19:17]} {[%emt 00:00:43]} Bb8 {[%clk 00:45:08]}
{[%emt 00:02:42]} 28. Ke2 {[%clk 01:18:35]} {[%emt 00:01:12]} Kf7 {[%clk
00:44:38]} {[%emt 00:01:00]} 29. Bxc6 {[%clk 01:18:30]} {[%emt 00:00:36]} Ke7
{[%clk 00:44:28]} {[%emt 00:00:40]} 30. b5 {[%emt 00:04:04]} Kf7 {[%clk
00:43:54]} {[%emt 00:00:07]} 31. Bb7 {[%clk 01:16:53]} {[%emt 00:00:28]} Be5
{[%clk 00:27:45]} {[%emt 00:16:39]} 32. Rxf8+ {[%emt 00:00:46]} Kxf8 {[%emt
00:00:01]} 33. c6 {[%clk 01:16:15]} {[%emt 00:00:22]} Bc7 {[%clk 00:28:00]}
{[%emt 00:00:15]} 34. h3 {[%clk 01:16:28]} {[%emt 00:00:17]} Ke7 {[%clk
00:27:59]} {[%emt 00:00:31]} 35. Nd2 {[%clk 01:16:45]} {[%emt 00:00:14]} Kd6
{[%clk 00:26:28]} {[%emt 00:02:01]} 36. Nb3 {[%clk 01:14:13]} {[%emt 00:03:01]}
e5 {[%clk 00:25:27]} {[%emt 00:01:31]} 37. Kd2 {[%clk 01:13:35]} {[%emt
00:01:08]} Bb6 {[%clk 00:21:09]} {[%emt 00:04:48]} 38. Ba6 {[%clk 01:13:30]}
{[%emt 00:00:34]} Kc7 {[%clk 00:21:06]} {[%emt 00:00:33]} 39. Nc1 {[%clk
01:13:36]} {[%emt 00:00:25]} Kd6 {[%clk 00:18:28]} {[%emt 00:03:08]} 40. Ne2
{[%clk 01:13:48]} {[%emt 00:00:18]} Ke6 {[%clk 00:17:40]} {[%emt 00:01:18]} 41.
Ng3 {[%clk 01:13:52]} {[%emt 00:00:26]} Kd6 {[%clk 00:12:58]} {[%emt 00:05:12]}
42. Nf5+ {[%clk 01:12:11]} {[%emt 00:02:11]} Ke6 {[%clk 00:10:27]} {[%emt
00:02:51]} 43. Kc2 {[%clk 01:09:16]} {[%emt 00:03:35]} h5 {[%clk 00:08:35]}
{[%emt 00:02:22]} 44. Ng7+ {[%clk 01:07:55]} {[%emt 00:01:51]} Kf7 {[%clk
00:07:44]} {[%emt 00:01:19]} 45. Nxh5 {[%clk 01:07:59]} {[%emt 00:00:28]} Kg6
{[%clk 00:06:25]} {[%emt 00:01:49]} 46. Ng3 {[%clk 01:07:57]} {[%emt 00:00:32]}
Kf6 {[%clk 00:06:22]} {[%emt 00:00:29]} 47. Nf5 {[%clk 01:08:09]} {[%emt
00:00:22]} Ke6 {[%clk 00:04:44]} {[%emt 00:02:08]} 48. Kd2 {[%clk 01:08:29]}
{[%emt 00:00:10]} Kf6 {[%clk 00:03:06]} {[%emt 00:02:04]} 49. Nd6 {[%clk
01:08:12]} {[%emt 00:00:51]} Ke6 {[%clk 00:03:04]} {[%emt 00:00:32]} 50. Nc8
{[%clk 01:08:28]} {[%emt 00:00:14]} Ba5 {[%clk 00:01:55]} {[%emt 00:01:34]} 51.
b6 {[%clk 01:05:38]} {[%emt 00:03:25]} d4 {[%clk 00:01:31]} {[%emt 00:00:54]}
52. c7 {[%clk 01:05:09]} {[%emt 00:00:59]} Bxc3+ {[%clk 00:01:21]} {[%emt
00:00:40]} 53. Kd1 {[%clk 01:05:11]} {[%emt 00:00:28]} Kd5 {[%clk 00:00:42]}
{[%emt 00:01:09]} 54. Ne7+ {[%clk 01:05:17]} {[%emt 00:00:23]} Kd6 {[%clk
00:00:58]} {[%emt 00:00:14]} 55. c8=Q {[%clk 01:05:32]} {[%emt 00:00:16]} Kxe7
{[%clk 00:01:16]} {[%emt 00:00:11]} 56. b7 {[%clk 01:05:35]} {[%emt 00:00:29]}
d3 {[%clk 00:00:00]} {[%emt 00:01:15]} 1-0

[Event "NJSK 2022 Jeugd C"]
[Site "Almelo, Netherlands"]
[Date "2022.05.03"]
[Round "3.1"]
[White "Arnold, Rhys"]
[Black "Zhu, Chenwu"]
[Result "0-1"]
[TimeControl "90min + 30sec/move"]
[WhiteElo "1846"]
[BlackElo "1968"]

1. e4 {[%clk 01:30:58]} {[%emt 00:00:01]} e5 {[%clk 01:30:50]} {[%emt
00:00:10]} 2. Nf3 {[%clk 01:31:25]} {[%emt 00:00:03]} Nc6 {[%clk 01:31:13]}
{[%emt 00:00:07]} 3. d4 {[%clk 01:31:52]} {[%emt 00:00:03]} exd4 {[%clk
01:31:38]} {[%emt 00:00:05]} 4. Nxd4 {[%clk 01:32:18]} {[%emt 00:00:04]} Bc5
{[%clk 01:31:54]} {[%emt 00:00:14]} 5. Nb3 {[%clk 01:32:44]} {[%emt 00:00:05]}
Bb6 {[%clk 01:32:10]} {[%emt 00:00:14]} 6. Nc3 {[%clk 01:33:09]} {[%emt
00:00:04]} h6 {[%clk 01:28:46]} {[%emt 00:03:54]} 7. Bf4 {[%clk 01:30:48]}
{[%emt 00:02:51]} d6 {[%clk 01:27:37]} {[%emt 00:01:39]} 8. Bb5 {[%clk
01:30:18]} {[%emt 00:01:00]} Nf6 {[%clk 01:24:56]} {[%emt 00:03:11]} 9. Bxc6+
{[%clk 01:28:37]} {[%emt 00:02:10]} bxc6 {[%clk 01:25:16]} {[%emt 00:00:10]} 10.
Qe2 {[%clk 01:26:13]} {[%emt 00:02:54]} O-O {[%clk 01:24:04]} {[%emt 00:01:42]}
11. O-O-O {[%clk 01:25:53]} {[%emt 00:00:49]} Qe7 {[%clk 01:22:48]} {[%emt
00:01:47]} 12. f3 {[%clk 01:24:28]} {[%emt 00:01:55]} a5 {[%clk 01:18:08]}
{[%emt 00:05:11]} 13. g4 {[%clk 01:16:10]} {[%emt 00:08:47]} a4 {[%clk
01:16:01]} {[%emt 00:02:37]} 14. Nd4 {[%clk 01:16:29]} {[%emt 00:00:10]} Nh7
{[%clk 01:10:05]} {[%emt 00:06:26]} 15. a3 {[%clk 01:07:43]} {[%emt 00:09:18]}
Qf6 {[%clk 01:03:12]} {[%emt 00:07:22]} 16. Be3 {[%clk 01:04:15]} {[%emt
00:03:57]} Ba5 {[%clk 00:59:09]} {[%emt 00:04:34]} 17. h4 {[%clk 00:52:20]}
{[%emt 00:12:26]} Bxc3 {[%clk 00:57:48]} {[%emt 00:01:50]} 18. bxc3 {[%clk
00:47:57]} {[%emt 00:04:53]} c5 {[%clk 00:54:38]} {[%emt 00:03:40]} 19. g5
{[%clk 00:33:47]} {[%emt 00:14:40]} Qe5 {[%clk 00:54:04]} {[%emt 00:01:05]} 20.
Qg2 {[%clk 00:27:16]} {[%emt 00:07:00]} cxd4 {[%clk 00:52:24]} {[%emt
00:02:10]} 21. f4 {[%clk 00:27:11]} {[%emt 00:00:34]} Qe7 {[%clk 00:44:30]}
{[%emt 00:08:25]} 22. cxd4 {[%clk 00:18:48]} {[%emt 00:08:53]} h5 {[%clk
00:43:40]} {[%emt 00:01:20]} 23. f5 {[%clk 00:16:51]} {[%emt 00:02:27]} Bxf5
{[%clk 00:43:05]} {[%emt 00:01:05]} 24. exf5 {[%clk 00:16:44]} {[%emt
00:00:38]} Qxe3+ {[%clk 00:43:26]} {[%emt 00:00:09]} 25. Kb2 {[%clk 00:17:06]}
{[%emt 00:00:07]} Rab8+ {[%clk 00:43:32]} {[%emt 00:00:25]} 26. Ka2 {[%clk
00:17:30]} {[%emt 00:00:06]} Qc3 {[%clk 00:43:39]} {[%emt 00:00:22]} 27. Rb1
{[%clk 00:17:46]} {[%emt 00:00:14]} Qc4+ {[%clk 00:43:51]} {[%emt 00:00:18]} 28.
Ka1 {[%clk 00:17:51]} {[%emt 00:00:25]} Qxd4+ {[%clk 00:44:07]} {[%emt
00:00:15]} 0-1

[Event "NJSK 2022 Jeugd C"]
[Site "Almelo, Netherlands"]
[Date "2022.05.03"]
[Round "3.2"]
[White "De Winter, Arthur"]
[Black "Zecha, Oscar"]
[Result "1-0"]
[TimeControl "90min + 30sec/move"]
[WhiteElo "2138"]
[BlackElo "1826"]

1. e4 {[%clk 01:30:57]} {[%emt 00:00:02]} e5 {[%clk 01:30:59]} {[%emt
00:00:02]} 2. Nf3 {[%clk 01:31:22]} {[%emt 00:00:05]} Nc6 {[%clk 01:31:27]}
{[%emt 00:00:02]} 3. Bc4 {[%clk 01:31:47]} {[%emt 00:00:04]} Bc5 {[%clk
01:31:51]} {[%emt 00:00:07]} 4. c3 {[%clk 01:31:34]} {[%emt 00:00:42]} Nf6
{[%clk 01:32:16]} {[%emt 00:00:06]} 5. d4 {[%clk 01:31:23]} {[%emt 00:00:41]}
exd4 {[%clk 01:32:40]} {[%emt 00:00:06]} 6. cxd4 {[%clk 01:31:34]} {[%emt
00:00:18]} Bb4+ {[%clk 01:32:55]} {[%emt 00:00:16]} 7. Nbd2 {[%clk 01:31:59]}
{[%emt 00:00:05]} d5 {[%clk 01:17:50]} {[%emt 00:15:35]} 8. exd5 {[%clk
01:32:25]} {[%emt 00:00:04]} Nxd5 {[%clk 01:14:26]} {[%emt 00:03:54]} 9. O-O
{[%clk 01:32:44]} {[%emt 00:00:10]} O-O {[%clk 01:12:23]} {[%emt 00:02:33]} 10.
a3 {[%clk 01:33:07]} {[%emt 00:00:08]} Ba5 {[%clk 01:10:29]} {[%emt 00:02:24]}
11. h3 {[%clk 01:04:38]} {[%emt 00:28:58]} Bb6 {[%clk 00:58:53]} {[%emt
00:12:06]} 12. Ne4 {[%clk 01:01:55]} {[%emt 00:03:13]} h6 {[%clk 00:49:40]}
{[%emt 00:09:43]} 13. Bxh6 {[%clk 01:00:21]} {[%emt 00:02:04]} Re8 {[%clk
00:35:58]} {[%emt 00:14:12]} 14. Bg5 {[%clk 00:59:29]} {[%emt 00:01:22]} Qd7
{[%clk 00:29:35]} {[%emt 00:06:53]} 15. Re1 {[%clk 00:56:35]} {[%emt 00:03:24]}
Kf8 {[%clk 00:25:33]} {[%emt 00:04:32]} 16. Nc5 {[%clk 00:43:00]} {[%emt
00:14:05]} Rxe1+ {[%clk 00:20:01]} {[%emt 00:06:01]} 17. Qxe1 {[%clk 00:43:21]}
{[%emt 00:00:09]} Qd6 {[%clk 00:18:58]} {[%emt 00:01:34]} 18. Rd1 {[%clk
00:28:51]} {[%emt 00:15:00]} Nf6 {[%clk 00:14:14]} {[%emt 00:05:14]} 19. Ne4
{[%clk 00:24:00]} {[%emt 00:05:21]} Nxe4 {[%clk 00:13:46]} {[%emt 00:00:58]} 20.
Qxe4 {[%clk 00:24:25]} {[%emt 00:00:04]} Bd7 {[%clk 00:12:29]} {[%emt
00:01:48]} 21. Qh7 {[%clk 00:23:33]} {[%emt 00:01:21]} 1-0

[Event "NJSK 2022 Jeugd C"]
[Site "Almelo, Netherlands"]
[Date "2022.05.03"]
[Round "3.3"]
[White "Smeets, Kobe"]
[Black "Ponomarev, Ivan"]
[Result "1-0"]
[TimeControl "90min + 30sec/move"]
[WhiteElo "1984"]
[BlackElo "1744"]

1. e4 {[%clk 01:30:59]} c5 {[%clk 01:30:56]} {[%emt 00:00:04]} 2. Nf3 {[%clk
01:31:27]} {[%emt 00:00:02]} e6 {[%clk 01:31:22]} {[%emt 00:00:04]} 3. d4
{[%clk 01:31:56]} {[%emt 00:00:02]} cxd4 {[%clk 01:31:47]} {[%emt 00:00:05]} 4.
Nxd4 {[%clk 01:32:23]} {[%emt 00:00:02]} Nc6 {[%clk 01:32:11]} {[%emt
00:00:06]} 5. Nc3 {[%clk 01:32:43]} {[%emt 00:00:11]} a6 {[%clk 01:32:36]}
{[%emt 00:00:06]} 6. a3 {[%clk 01:31:32]} {[%emt 00:01:40]} Be7 {[%clk
01:29:49]} {[%emt 00:03:16]} 7. Be3 {[%clk 01:31:58]} {[%emt 00:00:05]} Nf6
{[%clk 01:29:49]} {[%emt 00:00:30]} 8. f4 {[%clk 01:30:46]} {[%emt 00:01:41]}
d6 {[%clk 01:24:30]} {[%emt 00:05:50]} 9. Be2 {[%clk 01:26:35]} {[%emt
00:04:40]} Qc7 {[%clk 01:21:01]} {[%emt 00:03:58]} 10. O-O {[%clk 01:26:03]}
{[%emt 00:01:03]} O-O {[%clk 01:09:47]} {[%emt 00:11:44]} 11. Qe1 {[%clk
01:25:12]} {[%emt 00:01:21]} e5 {[%clk 01:05:45]} {[%emt 00:04:33]} 12. fxe5
{[%clk 01:22:13]} {[%emt 00:03:28]} dxe5 {[%clk 00:57:03]} {[%emt 00:09:12]} 13.
Nb3 {[%clk 01:08:08]} {[%emt 00:14:35]} Na5 {[%clk 00:47:17]} {[%emt 00:10:16]}
14. Nxa5 {[%clk 01:03:35]} {[%emt 00:05:02]} Qxa5 {[%clk 00:47:41]} {[%emt
00:00:07]} 15. Nd5 {[%clk 01:03:58]} {[%emt 00:00:07]} Qd8 {[%clk 00:45:42]}
{[%emt 00:02:29]} 16. Nb6 {[%clk 00:58:12]} {[%emt 00:06:17]} Rb8 {[%clk
00:45:04]} {[%emt 00:01:08]} 17. Qc3 {[%clk 00:52:52]} {[%emt 00:05:48]} Bd6
{[%clk 00:30:44]} {[%emt 00:14:51]} 18. Rad1 {[%clk 00:33:54]} {[%emt
00:19:28]} Qc7 {[%clk 00:24:19]} {[%emt 00:06:56]} 19. Rxd6 {[%clk 00:25:08]}
{[%emt 00:09:16]} Qxd6 {[%clk 00:24:37]} {[%emt 00:00:12]} 20. Bc5 {[%clk
00:25:34]} {[%emt 00:00:04]} Qc6 {[%clk 00:20:37]} {[%emt 00:04:30]} 21. Bxf8
{[%clk 00:25:58]} {[%emt 00:00:06]} Qxc3 {[%clk 00:20:50]} {[%emt 00:00:17]} 22.
bxc3 {[%clk 00:26:25]} {[%emt 00:00:03]} Kxf8 {[%clk 00:21:12]} {[%emt
00:00:08]} 23. Bc4 {[%clk 00:26:39]} {[%emt 00:00:16]} Ke7 {[%clk 00:18:42]}
{[%emt 00:03:00]} 24. Bd5 {[%clk 00:25:49]} {[%emt 00:01:21]} Be6 {[%clk
00:17:04]} {[%emt 00:02:09]} 25. c4 {[%clk 00:26:09]} {[%emt 00:00:10]} Nd7
{[%clk 00:15:51]} {[%emt 00:01:43]} 26. Bxe6 {[%clk 00:19:34]} {[%emt
00:07:05]} fxe6 {[%clk 00:15:31]} {[%emt 00:00:49]} 27. Nxd7 {[%clk 00:19:59]}
{[%emt 00:00:04]} Kxd7 {[%clk 00:15:49]} {[%emt 00:00:13]} 28. Rf7+ {[%clk
00:20:26]} {[%emt 00:00:03]} Kd6 {[%clk 00:14:10]} {[%emt 00:02:09]} 29. Rxg7
{[%clk 00:20:49]} {[%emt 00:00:07]} Kc5 {[%clk 00:12:47]} {[%emt 00:01:52]} 30.
Rxh7 {[%clk 00:21:15]} {[%emt 00:00:05]} Kxc4 {[%clk 00:12:59]} {[%emt
00:00:19]} 31. Re7 {[%clk 00:20:08]} {[%emt 00:01:36]} Kd4 {[%clk 00:11:26]}
{[%emt 00:02:02]} 32. Rxe6 {[%clk 00:20:33]} {[%emt 00:00:06]} Kxe4 {[%clk
00:11:51]} {[%emt 00:00:04]} 33. Rb6 {[%clk 00:21:02]} {[%emt 00:00:02]} Rc8
{[%clk 00:09:49]} {[%emt 00:02:31]} 34. Rxb7 {[%clk 00:18:58]} {[%emt
00:02:35]} Rxc2 {[%clk 00:10:04]} {[%emt 00:00:15]} 35. h4 {[%clk 00:14:35]}
{[%emt 00:04:54]} Ke3 {[%clk 00:06:48]} {[%emt 00:03:44]} 36. h5 {[%clk
00:10:48]} {[%emt 00:04:18]} Rc6 {[%clk 00:05:01]} {[%emt 00:02:17]} 37. Rb3+
{[%clk 00:11:03]} {[%emt 00:00:15]} Kf4 {[%emt 00:00:59]} 38. Rh3 {[%clk
00:10:16]} {[%emt 00:01:15]} Kg5 {[%clk 00:03:17]} {[%emt 00:01:47]} 39. Kf2
{[%clk 00:08:14]} {[%emt 00:02:32]} Kh6 {[%clk 00:01:41]} {[%emt 00:02:06]} 40.
g4 {[%clk 00:03:52]} {[%emt 00:04:52]} Kg5 {[%clk 00:00:54]} {[%emt 00:01:17]}
41. Rg3 {[%clk 00:02:14]} {[%emt 00:02:08]} Rc2+ {[%clk 00:00:55]} {[%emt
00:00:29]} 42. Kf3 {[%clk 00:02:25]} {[%emt 00:00:19]} Rc4 {[%clk 00:01:07]}
{[%emt 00:00:17]} 43. Kg2 {[%clk 00:02:48]} {[%emt 00:00:08]} Rc1 {[%clk
00:01:03]} {[%emt 00:00:34]} 44. Kh2 {[%clk 00:01:46]} {[%emt 00:01:32]} Rc2+
{[%clk 00:00:57]} {[%emt 00:00:35]} 45. Kh3 {[%clk 00:01:59]} {[%emt 00:00:18]}
Rc1 {[%clk 00:00:46]} {[%emt 00:00:42]} 46. Re3 {[%clk 00:01:56]} {[%emt
00:00:32]} Kf4 {[%clk 00:00:50]} {[%emt 00:00:26]} 47. Re2 {[%clk 00:02:13]}
{[%emt 00:00:13]} Rc3+ {[%clk 00:00:49]} {[%emt 00:00:31]} 48. Kh4 {[%clk
00:02:11]} {[%emt 00:00:32]} Rc1 {[%clk 00:00:39]} {[%emt 00:00:40]} 49. Rf2+
{[%clk 00:02:33]} {[%emt 00:00:08]} Ke3 {[%clk 00:01:01]} {[%emt 00:00:09]} 50.
Rf7 {[%clk 00:02:57]} {[%emt 00:00:06]} e4 {[%clk 00:00:58]} {[%emt 00:00:32]}
51. h6 {[%clk 00:02:57]} {[%emt 00:00:30]} Rh1+ {[%clk 00:01:07]} {[%emt
00:00:21]} 52. Kg5 {[%clk 00:03:21]} {[%emt 00:00:06]} Ke2 {[%clk 00:01:18]}
{[%emt 00:00:18]} 53. Kg6 {[%clk 00:03:28]} {[%emt 00:00:24]} e3 {[%clk
00:00:53]} {[%emt 00:00:56]} 54. g5 {[%clk 00:03:50]} {[%emt 00:00:07]} Kd1
{[%clk 00:00:46]} {[%emt 00:00:37]} 55. Rd7+ {[%clk 00:04:14]} {[%emt
00:00:06]} Kc2 {[%clk 00:01:08]} {[%emt 00:00:07]} 56. Re7 {[%clk 00:04:38]}
{[%emt 00:00:07]} Kd2 {[%clk 00:01:27]} {[%emt 00:00:11]} 57. h7 {[%clk
00:04:53]} {[%emt 00:00:14]} e2 {[%clk 00:01:37]} {[%emt 00:00:21]} 58. Kg7
{[%clk 00:05:16]} {[%emt 00:00:07]} 1-0